Cogmind - Beta 13 @@@ ROGUE MODE // 2024.03.30 @ 17:08:45 Player: MORONI274 Result: Destroyed by G-34 Mercenary with Small Laser Performance ------------- Evolutions (1) 500 Regions Visited (3) 600 Robots Destroyed (23) 115 Value Destroyed (525) 525 Prototype IDs (1) 20 Alien Tech Used (0) 0 Bonus (0) 0 TOTAL SCORE: 1760 Bonus ------- None Cogmind --------- Core Integrity 0/400 Matter 300/300 Energy 100/100 System Corruption 3% Temperature Cool (6) Movement Core (450) Ox8 Location -9/Materials Parts ------- > --- POWER (2) -------- (None) > --- PROPULSION (2) --- (None) > --- UTILITY (3) ------ Large Storage Unit Advanced Visual Processing Unit > --- WEAPON (2) ------- Heavy Hammer Heavy Hammer > --- INVENTORY (15) --- Deuterium Engine Deuterium Engine Wheel Flight Unit Heat Sink Medium Storage Unit Large Storage Unit Small Matter Pod (48) Structural Scanner Advanced Visual Processing Unit Advanced Visual Processing Unit Advanced Visual Processing Unit Terrain Scanner Long-range Tractor Beam Long-range Tractor Beam Peak State ------------ > --- POWER ------------ Ion Engine Light Ion Engine > --- PROPULSION ------- Aluminum Leg Aluminum Leg > --- UTILITY ---------- Large Storage Unit Large Storage Unit Advanced Visual Processing Unit > --- WEAPON ----------- EM Pulse Gun Improved Assault Rifle > --- INVENTORY -------- Deuterium Engine Deuterium Engine Deuterium Engine Deuterium Engine Flight Unit Medium Storage Unit Small Matter Pod Structural Scanner Advanced Visual Processing Unit Advanced Visual Processing Unit Advanced Visual Processing Unit Terrain Scanner Long-range Tractor Beam Long-range Tractor Beam Assault Rifle [Rating: 16] Favorites ----------- Power Ion Engine Engine Ion Engine Propulsion Aluminum Leg Leg Aluminum Leg Wheel Wheel Flight Unit Flight Unit Utility Large Storage Unit Device Terrain Scanner Storage Large Storage Unit Processor Advanced Visual Processing Unit Weapon Light Assault Rifle Energy Gun EM Pulse Gun Ballistic Gun Light Assault Rifle Launcher Grenade Launcher Impact Weapon Heavy Hammer Build | -11 -10 -10 -9 ------- Run | Yrd Mat Min Mat Slots Evolved 2 | . . . 2 Power 1 | . . . 1 Propulsion . | . . . . Utility 1 | . . . 1 Weapon . | . . . . Parts Attached 40 | 5 10 4 21 Power 5 | 1 1 . 3 Engine 5 | 1 1 . 3 Core . | . . . . Reactor . | . . . . Propulsion 12 | 2 4 2 4 Treads . | . . . . Leg 6 | . 1 2 3 Wheel 5 | 2 3 . . Hover . | . . . . Flight 1 | . . . 1 Utility 11 | . 2 1 8 Device 3 | . . 1 2 Storage 7 | . 2 . 5 Processor 1 | . . . 1 Hackware . | . . . . Protection . | . . . . Artifact . | . . . . Weapon 12 | 2 3 1 6 Energy Gun 3 | . 1 . 2 Energy Cannon . | . . . . Ballistic Gun 6 | 2 1 1 2 Ballistic Cannon . | . . . . Launcher 1 | . 1 . . Special Weapon . | . . . . Impact Weapon 2 | . . . 2 Slashing Weapon . | . . . . Piercing Weapon . | . . . . Special Melee Weapon . | . . . . Unidentified Prototypes 1 | . . . 1 Parts Lost 16 | . 3 1 12 Power 5 | . 1 . 4 Propulsion 6 | . 1 1 4 Utility 1 | . . . 1 Weapon 4 | . 1 . 3 Highest Loss Streak 4 | . 3 1 4 To Critical Strikes 1 | . . . 1 Average Slot Usage (%) 88 | . 83 99 87 Engine 15 | . 13 14 17 Leg 13 | . . 25 17 Wheel 7 | . 25 1 . Device 3 | . . 7 3 Storage 18 | . 14 21 19 Processor 5 | . . . 9 Energy Gun 5 | . 7 1 5 Ballistic Gun 13 | . 14 26 8 Launcher 1 | . 5 . . Impact Weapon 2 | . . . 5 Naked Turns . | . . . . Heaviest Build 56 | 6 17 18 56 Greatest Support 26 | 20 26 26 20 Greatest Overweight (x) 17 | 1 2 1 17 Average Overweight (x) . | . . . 2 Largest Inventory Capacity 15 | 5 8 8 15 Average Capacity 10 | 5 6 8 14 Most Carried 15 | 4 8 8 15 Average Carried 9 | 2 6 7 13 Final Capacity 15 | 5 8 8 15 Final Carried 15 | 4 8 8 15 Class Distribution -------------------- 54% | Scavenger-Mutant 45% | Mutant Dominant Class ---------------- Scavenger-Mutant | -10/Materials Scavenger-Mutant | -10/Mines Scavenger-Mutant | -9/Materials Resources | -11 -10 -10 -9 ----------- Run | Yrd Mat Min Mat Matter Collected 775 | 281 145 147 202 Remotely . | . . . . Salvage Created 629 | 68 205 106 250 Parts 36 | 3 15 6 12 Haulers Intercepted . | . . . . Recyclers Shooed . | . . . . Parts Field Recycled . | . . . . Retrieved Matter . | . . . . Parts Self-Destructed . | . . . . Prevented . | . . . . Kills | -11 -10 -10 -9 ------- Run | Yrd Mat Min Mat Combat Hostiles Destroyed 19 | 1 5 4 9 Melee 3 | . . . 3 Guns 7 | 1 . 4 2 AOE 8 | . 5 . 3 Classes Destroyed 5 | 2 2 . 1 Worker 2 | 1 1 . . Recycler 2 | . 2 . . Swarmer 8 | . 3 2 3 Grunt 10 | 1 2 2 5 Sentry 1 | . . . 1 Best Kill Streak 6 | 1 6 2 3 Combat Bots Only 3 | 1 3 2 3 Max Kills in Single Turn 3 | 1 3 1 3 Gunslinging . | . . . . Exploded 3 | . 1 . 3 Melee 1 | . . . 1 Uniques/NPCs Destroyed . | . . . . Combat | -11 -10 -10 -9 -------- Run | Yrd Mat Min Mat Hostile Shots Fired 218 | 13 27 16 162 Missed 58 | 1 10 5 42 Damage Taken 1919 | 130 337 107 1345 Core 567 | 22 93 42 410 Absorbed by Shields . | . . . . Regen/Repaired (Parts) 25 | . 25 . . Core Remaining (%) 64 | 91 . 37 . Volleys Fired 40 | 8 11 10 11 Largest 2 | 2 1 2 2 Hottest 60 | 40 30 40 60 Shots Fired 58 | 15 11 15 17 Gun 48 | 15 1 15 17 Cannon . | . . . . Launcher 10 | . 10 . . Special . | . . . . Kinetic 37 | 15 1 15 6 Thermal . | . . . . Explosive 10 | . 10 . . Electromagnetic 11 | . . . 11 Robot Hit Streak 5 | 4 4 5 3 Robot Miss Streak 3 | 2 2 2 3 Penetration Max . | . . . . Secondary Targets . | . . . . Shots Hit Robots 52 | 9 6 10 27 Core Hits 30 | 3 10 7 10 Critical Kills . | . . . . Critical Parts Destroyed . | . . . . Critical Strikes . | . . . . Melee Attacks 24 | . . . 24 Impact 24 | . . . 24 Slashing . | . . . . Piercing . | . . . . Sneak Attacks . | . . . . Combat Hostiles . | . . . . Follow-up Attacks 5 | . . . 5 Damage Inflicted 1657 | 100 511 98 948 Guns 331 | 100 6 98 127 Cannons . | . . . . Explosions 617 | . 505 . 112 Melee 709 | . . . 709 Ramming . | . . . . Kinetic 234 | 100 6 98 30 Thermal 112 | . . . 112 Explosive 505 | . 505 . . Electromagnetic 97 | . . . 97 Impact 709 | . . . 709 Slashing . | . . . . Piercing . | . . . . Highest Corruption 3 | . . . 3 Average Corruption 2 | . . . 2 Corruption Purged . | . . . . Corruption Blocked . | . . . . Effects 14 | . . . 14 Message Errors 1 | . . . 1 Matter Fused 5 | . . . 5 Heat Flow Errors 4 | . . . 4 Energy Discharges 1 | . . . 1 Parts Rejected 1 | . . . 1 Data Loss (major) 1 | . . . 1 Alerts 1 | . . . 1 Overload Shots . | . . . . Overflow Damage 90 | . 21 . 69 Projectiles . | . . . . Explosions 30 | . 21 . 9 Melee 60 | . . . 60 Knockbacks 4 | . . . 4 Impact 2 | . . . 2 Kinetic . | . . . . Secondary 2 | . . . 2 Self-Inflicted Damage 164 | . 164 . . Shots 4 | . 4 . . Rammed . | . . . . Targets Rammed . | . . . . Kicked . | . . . . Crushed . | . . . . Highest Temperature 277 | 1 5 9 277 Average Temperature 68 | 1 5 9 76 Received Heat Transfer 594 | 72 42 24 456 Siege Activations . | . . . . Robots Corrupted . | . . . . Combat Hostiles . | . . . . Parts Fried . | . . . . Impact Corruptions 4 | . . . 4 Robots Melted . | . . . . Combat Hostiles . | . . . . Parts Melted . | . . . . Heat Transferred 150 | . . . 150 Parts Sabotaged . | . . . . Parts Stolen . | . . . . Parts Stripped . | . . . . Power Chain Reactions 1 | . . . 1 Alert | -11 -10 -10 -9 ------- Run | Yrd Mat Min Mat Peak Influence 261 | 25 261 150 142 Initial 58 | . 16 40 58 Average 89 | 13 162 102 68 Maximum Alert Level 1 | . 1 . . Low Security (%) 86 | 100 46 100 100 Level 1 13 | . 53 . . Level 2 . | . . . . Level 3 . | . . . . Level 4 . | . . . . Level 5 . | . . . . High Security . | . . . . Max Security . | . . . . Squads Dispatched 4 | . 1 . 3 Investigation . | . . . . Extermination . | . . . . Reinforcement 4 | . 1 . 3 Assault . | . . . . Garrison . | . . . . Intercept . | . . . . Searches Triggered . | . . . . Construction Impeded 1 | . . . 1 Haulers Reinforced . | . . . . Active Scanning Responses . | . . . . Cargo Convoy Interrupts . | . . . . Stealth | -11 -10 -10 -9 --------- Run | Yrd Mat Min Mat Distress Signals 2 | . 1 . 1 Communications Jammed . | . . . . Distress Signals . | . . . . Times Spotted 30 | 1 10 5 14 Peak Tracking Total 4 | 1 3 3 4 Tactical Retreats 2 | . 2 . . Traps | -11 -10 -10 -9 ------- Run | Yrd Mat Min Mat Traps Triggered 2 | . . . 2 Indirectly . | . . . . Trap Hack Attempts . | . . . . Triggered . | . . . . Disarmed . | . . . . Reprogrammed . | . . . . Reused . | . . . . Traps Extracted . | . . . . Installed . | . . . . Triggered . | . . . . Machines | -11 -10 -10 -9 ---------- Run | Yrd Mat Min Mat Machines Disabled 2 | . 2 . . Max in Single Turn 1 | . 1 . . Machines Repaired . | . . . . Machines Dismantled . | . . . . Machines Sabotaged . | . . . . Overloaded Fab Kills . | . . . . Hacking | -11 -10 -10 -9 --------- Run | Yrd Mat Min Mat Machines Accessed 4 | . 3 . 1 Terminals 3 | . 2 . 1 Fabricators . | . . . . Repair Stations 1 | . 1 . . Recycling Units . | . . . . Scanalyzers . | . . . . Garrison Access . | . . . . Total Hacks 13 | . 10 . 3 Successful 7 | . 6 . 1 Failed 6 | . 4 . 2 Catastrophic 2 | . 1 . 1 Database Lockouts . | . . . . Manual 1 | . 1 . . Terminals 10 | . 7 . 3 Fabricators . | . . . . Repair Stations 3 | . 3 . . Recycling Units . | . . . . Scanalyzers . | . . . . Garrison Access . | . . . . Terminal Hacks 4 | . 3 . 1 Record 2 | . 1 . 1 Alert Level 2 | . 2 . . Fabricator Hacks . | . . . . Repair Station Hacks 3 | . 3 . . Scan Component 2 | . 2 . . Repair 1 | . 1 . . Recycling Unit Hacks . | . . . . Scanalyzer . | . . . . Garrison Access Hacks . | . . . . Unauthorized Hacks . | . . . . Terminals . | . . . . Fabricators . | . . . . Repair Stations . | . . . . Recycling Units . | . . . . Scanalyzers . | . . . . Garrison Access . | . . . . Data Cores Recovered . | . . . . Used . | . . . . Hacking Detections 3 | . 2 . 1 Full Trace Events 1 | . 1 . . Feedback Events . | . . . . Feedback Blocked . | . . . . Robot Schematics Acquired . | . . . . Robots Built . | . . . . Authchips . | . . . . Time . | . . . . Total Robot Build Rating . | . . . . Part Schematics Acquired . | . . . . Parts Built . | . . . . Authchips . | . . . . Time . | . . . . Total Part Build Rating . | . . . . Parts Repaired 1 | . 1 . . Time 26 | . 26 . . Parts Recycled . | . . . . Recycled Matter . | . . . . Retrieved Matter . | . . . . Retrieved Components . | . . . . Parts Scanalyzed . | . . . . Part Schematics Acquired . | . . . . Parts Damaged . | . . . . Bothacking | -11 -10 -10 -9 ------------ Run | Yrd Mat Min Mat Used RIF Installer . | . . . . Robots Hacked . | . . . . Non-combat . | . . . . Combat . | . . . . Robot Hacks Applied . | . . . . Relay Couplers Released . | . . . . Fabnet Peak Effective % . | . . . . Robots Rewired . | . . . . Allies Hacked . | . . . . Hacks Repelled . | . . . . Allies | -11 -10 -10 -9 -------- Run | Yrd Mat Min Mat Total Allies . | . . . . Largest Group . | . . . . Highest-Rated Group . | . . . . Highest-Rated Ally . | . . . . Total Orders . | . . . . Ally Attacks . | . . . . Total Damage . | . . . . Kills . | . . . . Allies Corrupted . | . . . . Allies Melted . | . . . . Intel | -11 -10 -10 -9 ------- Run | Yrd Mat Min Mat Robot Analysis Total . | . . . . Derelict Logs Recovered . | . . . . Drone Launches . | . . . . Drone Recoveries . | . . . . Exploration | -11 -10 -10 -9 ------------- Run | Yrd Mat Min Mat Turns Passed 1643 | 212 412 222 797 Spaces Moved 994 | 205 386 157 246 Core 189 | 133 47 . 9 Treads . | . . . . Legs 410 | . 23 151 236 Wheels 394 | 72 316 6 . Hover . | . . . . Flight 1 | . . . 1 Fastest Speed 50 | 50 80 90 120 Average Speed 139 | 86 94 119 266 Slowest Speed 1080 | 100 150 120 1080 Overloaded Moves . | . . . . Propulsion Burnouts . | . . . . Robots Hopped . | . . . . Cave-ins Triggered . | . . . . Exploration Rate (%) 22 | 12 37 19 21 Regions Visited 3 Branch Regions 1 Pre-discovered Areas . | . . . . Known Exits Taken . | . . . . Unknown Exits Taken 3 | 1 1 1 . Scrap Searched 1 | . . 1 . Spaces Dug . | . . . . Terrain Destroyed 81 | . 75 . 6 Melee . | . . . . Projectile . | . . . . AOE 81 | . 75 . 6 Terrain Rammed . | . . . . Walls Destroyed . | . . . . Machines Disabled . | . . . . Actions | -11 -10 -10 -9 --------- Run | Yrd Mat Min Mat Total 1172 | 226 427 181 338 Wait 10 | . . . 10 Move 991 | 204 385 156 246 Hop . | . . . . Pick Up 52 | 9 15 6 22 Fast Attach 4 | . 1 . 3 Attach 22 | 5 8 1 8 Detach 1 | . . . 1 Swap 14 | . 1 3 10 Drop 19 | . 6 5 8 Fire 40 | 8 11 10 11 Melee 19 | . . . 19 Ram . | . . . . Kick . | . . . . Crush . | . . . . Escape Stasis . | . . . . Rewire . | . . . . Trap . | . . . . Miscellaneous . | . . . . Route ------- -11/Scrapyard -10/Materials -10/Mines -9/Materials (discovered 1 exit: [*Min]) History --------- Turn | Location | Event 2 | -11/Scrapyard | Met Revision 17 81 | -11/Scrapyard | Discovered new exit (range 8) 213 | -11/Scrapyard | Entered Materials 310 | -10/Materials | Build established: Mutant 333 | -10/Materials | Repaired Wheel 426 | -10/Materials | Lost 3 parts (1p1n1w) 526 | -10/Materials | Discovered new exit (range 7) 625 | -10/Materials | Entered Mines 628 | -10/Mines | Core integrity fell below 50% 689 | -10/Mines | Build established: Scavenger-Mutant 821 | -10/Mines | Discovered new exit (range 7) 847 | -10/Mines | Entered Materials 847 | -9/Materials | Evolved 2 slots: Power x1, Utility x1 1171 | -9/Materials | Discovered new exit (range 20) 1366 | -9/Materials | Lost 4 parts (1p1n2w) 1449 | -9/Materials | Lost 3 parts (2p1w) 1485 | -9/Materials | Core integrity fell below 50% 1606 | -9/Materials | Core integrity fell below 20% 1620 | -9/Materials | Build established: Mutant 1644 | -9/Materials | Destroyed by G-34 Mercenary with Small Laser Last Messages --------------- 01598_ G-34 Mercenary system corrupted by crushing effect. 01599_ G-34 Mercenary system terminally corrupted. 01599_ K-01 Serf collects debris. 01614_ G-34 Mercenary destroyed. 01614_ K-01 Serf collects debris. 01616_ Acquired 92 matter. 01618_ M-13 Machinist repairs Structural Scanner. 01619_ K-01 Serf collects debris. 01619_ R-06 Scavenger collects Aluminum Leg. 01621_ Heat Sink destroyed. 01623_ K-01 Serf collects debris. 01623_ R-06 Scavenger collects Ion Engine. 01627_ R-06 Scavenger collects Sml. Laser. 01632_ K-01 Serf collects debris. 01635_ R-06 Scavenger collects Sml. Matter Pod. 01636_ K-01 Serf collects debris. [Achievement: First Step to Greatness] Map ----- +----------------------------------------------------+ | ?# ##????????????????????# ###########?????????? | | ## #########?????????????# ^ #?????????? | | ## ####################### ^ ###???????? | | ^ ""#???????? | | #####################[ ""#???????? | | ##?????????# ??#^ T"#???????? | | #######?????????# ?#[ *** ""#???????? | | #######?????????# # *** * ""#???????? | | ##?##???????????# # *** ###???????? | | ##??????????????# + % #?????????? | | ##???#??????????# # ! #?????????? | | #???????????????# # ##T########?????????? | | ????????????????# # !####????????????????? | | ????????????????# + %##??????????????????? | | ?#??????????????##########u #???####????????????? | | ??????????????????# ! ?# #?? #????????????? | | ?????#????????????# # #? ] #????????????? | | ??????????????????# """" #m # #????????????? | | ??????????????????# """" # # #????????????? | | ??????????????????# """" + + "T" #????????????? | | ??????????????????# # k# """ #???????????? | | ??????????????????#??##?## #########???????????? | | ????????????????????????# "#????????????????? | | ????????????????????????# ""#????????????????? | | ????????????????????????# !!#????????????????? | | ????????????????????????#@ < ""#????????????????? | | ????????????????????????# !!#????????????????? | | ????????????????????????# ! ""#????????????????? | | ????????????????????????# "#????????????????? | | ??????????????????######## k%####????????????????? | | ??????????????????# #g ########+####???????? | | ??????????????????# ! [/ #???? | | ??????????????????# # #?????????? | | ??????????????????# # k #?????????? | | ??????????????????# # ### ##?????????? | | ??????????????????#! # #??????????????? | | ??????????????????######## #??????????????? | | ?????????????????????????# #??????????????? | | ????????????????????????? #??????????????? | | ????????????????????????? #??????????????? | | ????????????????????????? "" #??????????????? | | ????????????????????????? "" +??????????????? | | ????????????????????????=""" #??????????????? | | ???????????????????????? #??????????????? | | ???????????????????????? #??????????????? | | ???????????????????????? #??????????????? | | ??????????????????????? ?? #??????????????? | | ??????????????????????? ?? ??????????????? | | ??????????????????????? ? ?? ??????????????? | | ???????????????????????????? ???????????????? | +----------------------------------------------------+ Best States ------------- Heat Dissipation 38 Energy Generation 19 Energy Capacity 300 Matter Stores 300 Matter Capacity 300 Sight Range 20 Terrain Scan Range 14 Terrain Scan Density 10 Evasion (%) 55 Item Schematics ----------------- None Robot Schematics ------------------ None Fabricated ------------ Nothing Alien Tech Used ----------------- None Achievements -------------- First Step to Greatness Part-time Mechanic Risk Taker Uninvited Guest Challenges ------------ None Game ------ Seed AccelerationCoilArray Manual? 0 Play Time 00:34:16 Cumulative 0.5 hours Start 2024.03.30 @ 16:26:40 End 2024.03.30 @ 17:08:45 Sessions 1 Manual Loads 0 Difficulty Rogue Special Mode None Game No. 1 Rogue 1 Adventurer 0 Explorer 0 Win Type - Total 0 Types 0/0/0/0/0/0/0/0/0 Lore% 0 Gallery% 2 Achievement% 1 Wizard Run 0 Options --------- Layout 1 ASCII 0 Keyboard 0 Movement Arrows Keybinds 0 Fullscreen 0 Font 14/SmallcapsLarge Map View 50x40 Zoom Use 19% Tactical HUD 1 Map Filters NONE Filters NONE Steam SD RUN: aeb26135-0545-4d52-93ed-2fe07f5b54d2